[Event "*** Titled Tuesday Blitz"]
[Site "Chess.com"]
[Date "2021.04.06"]
[Round "2"]
[White "serena-maria"]
[Black "SirStrateg"]
[Result "0-1"]
[WhiteElo "2391"]
[BlackElo "2639"]
[TimeControl "180+1"]
[EndTime "10:18:27 PDT"]
[Termination "SirStrateg won by checkmate"]

1. Nf3 {[%clk 0:03:00.3]} 1... d6 {[%clk 0:03:00.1]} 2. c4 {[%clk 0:02:58.2]}
2... Bg4 {[%clk 0:02:56.7]} 3. d4 {[%clk 0:02:57]} 3... Nd7 {[%clk 0:02:55.6]}
4. e4 {[%clk 0:02:51.4]} 4... Bxf3 {[%clk 0:02:55]} 5. gxf3 {[%clk 0:02:49.5]}
5... e6 {[%clk 0:02:42.5]} 6. Nc3 {[%clk 0:02:49.2]} 6... Ngf6 {[%clk
0:02:41.9]} 7. Bg5 {[%clk 0:02:43.4]} 7... h6 {[%clk 0:02:37.4]} 8. Be3 {[%clk
0:02:43.1]} 8... c6 {[%clk 0:02:37.3]} 9. Qd2 {[%clk 0:02:41.9]} 9... d5 {[%clk
0:02:36.8]} 10. e5 {[%clk 0:02:37.4]} 10... Nh5 {[%clk 0:02:29.8]} 11. c5 {[%clk
0:02:33.3]} 11... a5 {[%clk 0:02:13.3]} 12. Be2 {[%clk 0:02:24.7]} 12... g6
{[%clk 0:02:05.7]} 13. Rc1 {[%clk 0:01:49.3]} 13... b6 {[%clk 0:01:52.5]} 14.
cxb6 {[%clk 0:01:43.7]} 14... Nxb6 {[%clk 0:01:52.4]} 15. b3 {[%clk 0:01:41.1]}
15... Qh4 {[%clk 0:01:21.7]} 16. Na4 {[%clk 0:01:33.8]} 16... Nxa4 {[%clk
0:01:18.3]} 17. bxa4 {[%clk 0:01:34.2]} 17... Bb4 {[%clk 0:01:18.2]} 18. Rc3
{[%clk 0:01:34.8]} 18... g5 {[%clk 0:00:55.1]} 19. Qc1 {[%clk 0:01:12.9]} 19...
O-O {[%clk 0:00:49.4]} 20. Bd2 {[%clk 0:01:06.6]} 20... Bxc3 {[%clk 0:00:47.2]}
21. Qxc3 {[%clk 0:01:07.2]} 21... Rfc8 {[%clk 0:00:39.2]} 22. Rg1 {[%clk
0:00:58.8]} 22... Qxh2 {[%clk 0:00:37.8]} 23. Kf1 {[%clk 0:00:58.5]} 23... Nf4
{[%clk 0:00:25.2]} 24. Bxf4 {[%clk 0:00:32.7]} 24... Qxf4 {[%clk 0:00:24.3]} 25.
Rg4 {[%clk 0:00:32.2]} 25... Qh2 {[%clk 0:00:20.5]} 26. Bd1 {[%clk 0:00:24.8]}
26... Rab8 {[%clk 0:00:17.8]} 27. Bc2 {[%clk 0:00:24]} 27... Rb4 {[%clk
0:00:15]} 28. Qd3 {[%clk 0:00:23.7]} 28... Kf8 {[%clk 0:00:14.2]} 29. Qh7 {[%clk
0:00:23]} 29... Ke7 {[%clk 0:00:14.2]} 30. Bg6 {[%clk 0:00:22.9]} 30... Rf8
{[%clk 0:00:13.9]} 31. Qg7 {[%clk 0:00:22.7]} 31... Qh1+ {[%clk 0:00:10.2]} 32.
Ke2 {[%clk 0:00:18.9]} 32... Rb2+ {[%clk 0:00:09.5]} 33. Kd3 {[%clk 0:00:11.3]}
33... Qb1+ {[%clk 0:00:09.7]} 34. Kc3 {[%clk 0:00:11.5]} 34... Qc1+ {[%clk
0:00:10.1]} 35. Kd3 {[%clk 0:00:10.9]} 35... Rd2+ {[%clk 0:00:10.5]} 36. Ke3
{[%clk 0:00:11.5]} 36... Qe1# {[%clk 0:00:10.8]} 0-1

[Event "*** Titled Tuesday Blitz"]
[Site "Chess.com"]
[Date "2021.04.06"]
[Round "2"]
[White "karinachess1"]
[Black "Rish_97"]
[Result "0-1"]
[WhiteElo "2488"]
[BlackElo "2707"]
[TimeControl "180+1"]
[EndTime "10:18:28 PDT"]
[Termination "Rish_97 won by resignation"]

1. d4 {[%clk 0:03:00.9]} 1... Nf6 {[%clk 0:02:59]} 2. Nf3 {[%clk 0:03:00.2]}
2... e6 {[%clk 0:02:59.1]} 3. e3 {[%clk 0:02:54.6]} 3... c5 {[%clk 0:02:53.5]}
4. Bd3 {[%clk 0:02:49.3]} 4... b6 {[%clk 0:02:52.8]} 5. O-O {[%clk 0:02:44]}
5... Bb7 {[%clk 0:02:52.9]} 6. c4 {[%clk 0:02:43.6]} 6... cxd4 {[%clk
0:02:46.8]} 7. exd4 {[%clk 0:02:32.6]} 7... Be7 {[%clk 0:02:47]} 8. Nc3 {[%clk
0:02:31.5]} 8... d6 {[%clk 0:02:43.3]} 9. Qe2 {[%clk 0:02:21.7]} 9... O-O {[%clk
0:02:42.4]} 10. h3 {[%clk 0:02:10.7]} 10... Re8 {[%clk 0:02:41.8]} 11. Bf4
{[%clk 0:01:55.6]} 11... Bf8 {[%clk 0:02:40.9]} 12. Rad1 {[%clk 0:01:51.2]}
12... a6 {[%clk 0:02:40.7]} 13. Bb1 {[%clk 0:01:39.6]} 13... Nbd7 {[%clk
0:02:37.4]} 14. Rfe1 {[%clk 0:01:37.7]} 14... Rc8 {[%clk 0:02:35.4]} 15. Qd3
{[%clk 0:01:30.9]} 15... g6 {[%clk 0:02:29.8]} 16. Bd2 {[%clk 0:00:54]} 16...
Bxf3 {[%clk 0:02:21.4]} 17. Qxf3 {[%clk 0:00:48.7]} 17... Rxc4 {[%clk
0:02:19.6]} 18. Bd3 {[%clk 0:00:43.7]} 18... Rxd4 {[%clk 0:02:16.9]} 19. Be3
{[%clk 0:00:43.9]} 19... Ne5 {[%clk 0:02:12.8]} 20. Qe2 {[%clk 0:00:28.8]} 20...
Rxd3 {[%clk 0:02:12.9]} 21. Rxd3 {[%clk 0:00:28.7]} 21... Nxd3 {[%clk
0:02:13.8]} 22. Qxd3 {[%clk 0:00:29.3]} 22... b5 {[%clk 0:02:14.5]} 23. a4
{[%clk 0:00:26.6]} 23... b4 {[%clk 0:02:01.3]} 24. Ne2 {[%clk 0:00:20.6]} 24...
Qa5 {[%clk 0:01:59.8]} 25. b3 {[%clk 0:00:20.1]} 25... Qd5 {[%clk 0:01:59.4]}
26. Qxa6 {[%clk 0:00:19.5]} 26... Qxb3 {[%clk 0:01:59.3]} 27. Nd4 {[%clk
0:00:19.8]} 27... Qc3 {[%clk 0:01:57.3]} 28. Rc1 {[%clk 0:00:20.1]} 28... Qa3
{[%clk 0:01:54.8]} 29. Qb5 {[%clk 0:00:10.6]} 29... Ra8 {[%clk 0:01:39]} 30. Nc2
{[%clk 0:00:07.6]} 30... Qxa4 {[%clk 0:01:38.2]} 31. Qxb4 {[%clk 0:00:08.2]}
31... Qxb4 {[%clk 0:01:33.9]} 32. Nxb4 {[%clk 0:00:09.1]} 32... d5 {[%clk
0:01:17.4]} 33. Nd3 {[%clk 0:00:09.2]} 33... Ne4 {[%clk 0:01:17]} 34. Rc7 {[%clk
0:00:08.9]} 34... Bd6 {[%clk 0:01:10.7]} 35. Rc1 {[%clk 0:00:08.2]} 35... h5
{[%clk 0:01:08.5]} 36. h4 {[%clk 0:00:07.7]} 36... e5 {[%clk 0:01:01]} 37. f3
{[%clk 0:00:03]} 37... Ng3 {[%clk 0:00:58]} 38. Re1 {[%clk 0:00:03.3]} 38... e4
{[%clk 0:00:55.6]} 39. fxe4 {[%clk 0:00:03.2]} 39... dxe4 {[%clk 0:00:56.5]} 40.
Nf4 {[%clk 0:00:03.6]} 40... Nf5 {[%clk 0:00:56.5]} 41. Nd5 {[%clk 0:00:02.9]}
41... Bg3 {[%clk 0:00:53.7]} 42. Rf1 {[%clk 0:00:02.2]} 42... Nxe3 {[%clk
0:00:52.7]} 43. Nxe3 {[%clk 0:00:03.1]} 43... Bxh4 {[%clk 0:00:53.4]} 44. Nd5
{[%clk 0:00:03.1]} 44... Re8 {[%clk 0:00:51.7]} 45. Nc7 {[%clk 0:00:02.9]} 45...
Re5 {[%clk 0:00:51.4]} 46. Rd1 {[%clk 0:00:02.8]} 46... e3 {[%clk 0:00:51.5]}
47. g3 {[%clk 0:00:02.4]} 47... e2 {[%clk 0:00:51]} 48. Re1 {[%clk 0:00:02.1]}
48... Bxg3 {[%clk 0:00:51.2]} 0-1

[Event "*** Titled Tuesday Blitz"]
[Site "Chess.com"]
[Date "2021.04.06"]
[Round "2"]
[White "KrolPawel92OnTwitch"]
[Black "MelihKaanCan"]
[Result "1-0"]
[WhiteElo "2645"]
[BlackElo "2326"]
[TimeControl "180+1"]
[EndTime "10:18:29 PDT"]
[Termination "KrolPawel92OnTwitch won by checkmate"]

1. e4 {[%clk 0:03:00.9]} 1... e5 {[%clk 0:02:59.3]} 2. Qh5 {[%clk 0:02:59.9]}
2... Nc6 {[%clk 0:02:58.9]} 3. Bc4 {[%clk 0:02:59]} 3... g6 {[%clk 0:02:59.3]}
4. Qf3 {[%clk 0:02:59.3]} 4... Nf6 {[%clk 0:02:59.6]} 5. Ne2 {[%clk 0:02:59.6]}
5... Bg7 {[%clk 0:02:59.4]} 6. c3 {[%clk 0:02:58.9]} 6... d6 {[%clk 0:02:56.7]}
7. h3 {[%clk 0:02:59]} 7... O-O {[%clk 0:02:55]} 8. O-O {[%clk 0:02:58.9]} 8...
Be6 {[%clk 0:02:55.4]} 9. d3 {[%clk 0:02:58]} 9... Qd7 {[%clk 0:02:26.9]} 10.
Bg5 {[%clk 0:02:55.2]} 10... Ne8 {[%clk 0:02:14.8]} 11. Nd2 {[%clk 0:02:51.5]}
11... h6 {[%clk 0:02:14.7]} 12. Be3 {[%clk 0:02:50.6]} 12... Kh7 {[%clk
0:02:13.1]} 13. Ng3 {[%clk 0:02:48.5]} 13... f5 {[%clk 0:02:12.2]} 14. exf5
{[%clk 0:02:44.9]} 14... gxf5 {[%clk 0:02:11.8]} 15. Bxe6 {[%clk 0:02:22]} 15...
Qxe6 {[%clk 0:02:11.3]} 16. d4 {[%clk 0:02:22]} 16... f4 {[%clk 0:02:08.5]} 17.
d5 {[%clk 0:02:22]} 17... Qg6 {[%clk 0:01:41.2]} 18. dxc6 {[%clk 0:02:21.3]}
18... fxe3 {[%clk 0:01:38.9]} 19. cxb7 {[%clk 0:02:13.8]} 19... Rb8 {[%clk
0:01:25.1]} 20. Qxe3 {[%clk 0:02:14.1]} 20... Rxb7 {[%clk 0:01:24.4]} 21. b4
{[%clk 0:02:05.4]} 21... Nf6 {[%clk 0:01:24.6]} 22. Nde4 {[%clk 0:01:56.6]}
22... Nd5 {[%clk 0:01:16.7]} 23. Qd2 {[%clk 0:01:51.5]} 23... Nf4 {[%clk
0:01:14.8]} 24. Rfe1 {[%clk 0:01:40.8]} 24... h5 {[%clk 0:01:10.2]} 25. h4
{[%clk 0:01:41]} 25... Bh6 {[%clk 0:01:08.1]} 26. Qc2 {[%clk 0:01:33.6]} 26...
a5 {[%clk 0:01:03.3]} 27. bxa5 {[%clk 0:01:32.8]} 27... Ra7 {[%clk 0:01:03.6]}
28. Rab1 {[%clk 0:01:31.5]} 28... Rfa8 {[%clk 0:01:00.7]} 29. Rb5 {[%clk
0:01:18.2]} 29... Kh8 {[%clk 0:00:59.9]} 30. Qb1 {[%clk 0:01:02.9]} 30... Rf8
{[%clk 0:00:48.8]} 31. Rb7 {[%clk 0:00:56.4]} 31... Rxa5 {[%clk 0:00:48.9]} 32.
Rxc7 {[%clk 0:00:55.3]} 32... Ne6 {[%clk 0:00:49.3]} 33. Re7 {[%clk 0:00:49.4]}
33... d5 {[%clk 0:00:36.9]} 34. Nd6 {[%clk 0:00:39.4]} 34... Qxb1 {[%clk
0:00:32.6]} 35. Rxb1 {[%clk 0:00:40.3]} 35... Nf4 {[%clk 0:00:07.9]} 36. Ngf5
{[%clk 0:00:39.4]} 36... Rxa2 {[%clk 0:00:05.2]} 37. Nxh6 {[%clk 0:00:36.4]}
37... Ne2+ {[%clk 0:00:05.1]} 38. Kh1 {[%clk 0:00:34]} 38... Nxc3 {[%clk
0:00:04.5]} 39. Rbb7 {[%clk 0:00:24.6]} 39... Ra1+ {[%clk 0:00:04.5]} 40. Kh2
{[%clk 0:00:24.4]} 40... Rxf2 {[%clk 0:00:04.5]} 41. Rh7# {[%clk 0:00:24.4]} 1-0

[Event "*** Titled Tuesday Blitz"]
[Site "Chess.com"]
[Date "2021.04.06"]
[Round "2"]
[White "Savagelittlemole"]
[Black "AAponteR"]
[Result "1-0"]
[WhiteElo "2500"]
[BlackElo "2141"]
[TimeControl "180+1"]
[EndTime "10:18:31 PDT"]
[Termination "Savagelittlemole won on time"]

1. e4 {[%clk 0:03:00.9]} 1... c5 {[%clk 0:02:56.6]} 2. Ne2 {[%clk 0:03:00.9]}
2... Nc6 {[%clk 0:02:55.7]} 3. g3 {[%clk 0:03:01.3]} 3... g6 {[%clk 0:02:54.9]}
4. Bg2 {[%clk 0:03:01.9]} 4... Bg7 {[%clk 0:02:54.4]} 5. O-O {[%clk 0:03:02.6]}
5... d6 {[%clk 0:02:51.1]} 6. c3 {[%clk 0:03:03]} 6... e5 {[%clk 0:02:47.4]} 7.
d3 {[%clk 0:03:03.4]} 7... Nge7 {[%clk 0:02:46.4]} 8. f4 {[%clk 0:03:03.1]} 8...
O-O {[%clk 0:02:42.8]} 9. h3 {[%clk 0:03:03.1]} 9... f5 {[%clk 0:02:41.6]} 10.
Nd2 {[%clk 0:03:02.4]} 10... Rb8 {[%clk 0:02:37.8]} 11. Kh2 {[%clk 0:02:58.1]}
11... Kh8 {[%clk 0:02:35]} 12. exf5 {[%clk 0:02:55.9]} 12... Bxf5 {[%clk
0:02:29]} 13. Ne4 {[%clk 0:02:56]} 13... b5 {[%clk 0:02:21.2]} 14. fxe5 {[%clk
0:02:49.1]} 14... Nxe5 {[%clk 0:02:16.4]} 15. Bg5 {[%clk 0:02:46.3]} 15... h6
{[%clk 0:02:11.1]} 16. Be3 {[%clk 0:02:46.1]} 16... b4 {[%clk 0:02:08.1]} 17.
Qd2 {[%clk 0:02:40.3]} 17... Kh7 {[%clk 0:02:05.8]} 18. g4 {[%clk 0:02:26.6]}
18... Be6 {[%clk 0:01:49.6]} 19. N2g3 {[%clk 0:02:23.7]} 19... bxc3 {[%clk
0:01:42.4]} 20. bxc3 {[%clk 0:02:23.4]} 20... Nd5 {[%clk 0:01:28.8]} 21. Rxf8
{[%clk 0:02:14.4]} 21... Qxf8 {[%clk 0:01:24.3]} 22. Rf1 {[%clk 0:02:14.9]}
22... Qe7 {[%clk 0:01:22.4]} 23. Bg1 {[%clk 0:02:07.2]} 23... Bxg4 {[%clk
0:01:10.4]} 24. c4 {[%clk 0:01:37.4]} 24... Nb4 {[%clk 0:00:51.4]} 25. Be3
{[%clk 0:01:17.2]} 25... Nbxd3 {[%clk 0:00:39.3]} 26. hxg4 {[%clk 0:01:03.5]}
26... Nxg4+ {[%clk 0:00:34.3]} 27. Kg1 {[%clk 0:00:51.7]} 27... Qh4 {[%clk
0:00:31.2]} 28. Bf3 {[%clk 0:00:25.9]} 28... Rb2 {[%clk 0:00:29.7]} 29. Qxb2
{[%clk 0:00:18.7]} 29... Nxb2 {[%clk 0:00:28.1]} 30. Bxg4 {[%clk 0:00:17.2]}
30... Qxg4 {[%clk 0:00:27]} 31. Rf7 {[%clk 0:00:17]} 31... Nxc4 {[%clk
0:00:23.5]} 32. Nf6+ {[%clk 0:00:16.6]} 32... Kh8 {[%clk 0:00:14.1]} 33. Nxg4
{[%clk 0:00:17.5]} 1-0

[Event "*** Titled Tuesday Blitz"]
[Site "Chess.com"]
[Date "2021.04.06"]
[Round "2"]
[White "Mikhal867"]
[Black "bylavochka"]
[Result "1-0"]
[WhiteElo "2450"]
[BlackElo "2227"]
[TimeControl "180+1"]
[EndTime "10:18:31 PDT"]
[Termination "Mikhal867 won on time"]

1. e4 {[%clk 0:02:37.9]} 1... c5 {[%clk 0:02:59.6]} 2. Nf3 {[%clk 0:02:37.1]}
2... d6 {[%clk 0:02:59.8]} 3. Bb5+ {[%clk 0:02:34.3]} 3... Bd7 {[%clk
0:02:59.3]} 4. a4 {[%clk 0:02:33]} 4... Nc6 {[%clk 0:02:54.1]} 5. O-O {[%clk
0:02:32.3]} 5... Nf6 {[%clk 0:02:53.6]} 6. Re1 {[%clk 0:02:31.9]} 6... e6 {[%clk
0:02:53.9]} 7. Nc3 {[%clk 0:02:30.3]} 7... Be7 {[%clk 0:02:53.6]} 8. d4 {[%clk
0:02:23.8]} 8... cxd4 {[%clk 0:02:50.8]} 9. Nxd4 {[%clk 0:02:23.8]} 9... a6
{[%clk 0:02:50.6]} 10. Nxc6 {[%clk 0:02:21.8]} 10... bxc6 {[%clk 0:02:51.5]} 11.
Bd3 {[%clk 0:02:19.5]} 11... a5 {[%clk 0:02:37.1]} 12. e5 {[%clk 0:02:18.1]}
12... Nd5 {[%clk 0:02:28.3]} 13. Qg4 {[%clk 0:02:12.5]} 13... g6 {[%clk
0:02:18.9]} 14. Bh6 {[%clk 0:02:08.1]} 14... Nxc3 {[%clk 0:02:06]} 15. bxc3
{[%clk 0:02:07]} 15... d5 {[%clk 0:02:06.5]} 16. Bg7 {[%clk 0:01:53.1]} 16...
Rg8 {[%clk 0:02:06.1]} 17. Bh6 {[%clk 0:01:52.9]} 17... c5 {[%clk 0:01:58.1]}
18. Bb5 {[%clk 0:01:44.2]} 18... c4 {[%clk 0:01:43.7]} 19. Rab1 {[%clk
0:01:34.8]} 19... Bc5 {[%clk 0:00:31.8]} 20. Bxd7+ {[%clk 0:01:29.5]} 20... Qxd7
{[%clk 0:00:30.8]} 21. Rb5 {[%clk 0:01:29.2]} 21... Qa7 {[%clk 0:00:27.2]} 22.
Be3 {[%clk 0:01:25.9]} 22... Bxe3 {[%clk 0:00:25]} 23. Rxe3 {[%clk 0:01:25.6]}
23... Rb8 {[%clk 0:00:23.8]} 24. h4 {[%clk 0:01:11.7]} 24... Rxb5 {[%clk
0:00:19.8]} 25. axb5 {[%clk 0:01:11.7]} 25... Qc5 {[%clk 0:00:07.2]} 26. Re1
{[%clk 0:01:03.6]} 26... Qxb5 {[%clk 0:00:05.3]} 27. Qg5 {[%clk 0:00:58.7]}
27... h5 {[%clk 0:00:03.6]} 28. Ra1 {[%clk 0:00:51.3]} 28... a4 {[%clk
0:00:03.2]} 29. Qh6 {[%clk 0:00:42.2]} 29... Qa5 {[%clk 0:00:03.2]} 30. Ra3
{[%clk 0:00:39.5]} 30... Qb5 {[%clk 0:00:02.4]} 31. Kh2 {[%clk 0:00:36.2]} 31...
Ke7 {[%clk 0:00:02.2]} 32. Qg5+ {[%clk 0:00:35]} 32... Ke8 {[%clk 0:00:02.6]}
33. Qe3 {[%clk 0:00:34]} 33... Qd7 {[%clk 0:00:01.3]} 34. Qc5 {[%clk 0:00:31.2]}
34... g5 {[%clk 0:00:01.5]} 35. Ra1 {[%clk 0:00:22.2]} 35... gxh4 {[%clk
0:00:01.6]} 36. Rb1 {[%clk 0:00:22.2]} 36... Qd8 {[%clk 0:00:01]} 37. Rb7 {[%clk
0:00:20]} 1-0

[Event "*** Titled Tuesday Blitz"]
[Site "Chess.com"]
[Date "2021.04.06"]
[Round "2"]
[White "MirMan90"]
[Black "erdni1993"]
[Result "1-0"]
[WhiteElo "2707"]
[BlackElo "2488"]
[TimeControl "180+1"]
[EndTime "10:18:33 PDT"]
[Termination "MirMan90 won by resignation"]

1. e4 {[%clk 0:03:00.9]} 1... c5 {[%clk 0:02:58.2]} 2. Nf3 {[%clk 0:03:00.7]}
2... e6 {[%clk 0:02:58.2]} 3. c3 {[%clk 0:03:00.5]} 3... Nf6 {[%clk 0:02:57.8]}
4. e5 {[%clk 0:03:00.1]} 4... Nd5 {[%clk 0:02:58.4]} 5. d4 {[%clk 0:03:00.7]}
5... cxd4 {[%clk 0:02:59.3]} 6. cxd4 {[%clk 0:03:01.1]} 6... d6 {[%clk
0:02:59.9]} 7. a3 {[%clk 0:02:59.9]} 7... Bd7 {[%clk 0:03:00.3]} 8. Bd3 {[%clk
0:02:59.3]} 8... Bc6 {[%clk 0:03:00.4]} 9. O-O {[%clk 0:02:59.3]} 9... Nd7
{[%clk 0:03:00.8]} 10. Bd2 {[%clk 0:02:57.1]} 10... Qc7 {[%clk 0:03:00.1]} 11.
Qe2 {[%clk 0:02:53.6]} 11... Be7 {[%clk 0:02:53]} 12. Nc3 {[%clk 0:02:53.3]}
12... Nxc3 {[%clk 0:02:34.5]} 13. Bxc3 {[%clk 0:02:53]} 13... O-O {[%clk
0:02:32.1]} 14. Rfe1 {[%clk 0:02:48]} 14... dxe5 {[%clk 0:02:25.4]} 15. dxe5
{[%clk 0:02:45.3]} 15... Rfd8 {[%clk 0:02:23]} 16. h4 {[%clk 0:02:36.8]} 16...
Nf8 {[%clk 0:02:06.3]} 17. h5 {[%clk 0:02:29.3]} 17... h6 {[%clk 0:02:06]} 18.
Nd4 {[%clk 0:02:09.7]} 18... a6 {[%clk 0:01:51.7]} 19. Nxc6 {[%clk 0:02:05.6]}
19... Qxc6 {[%clk 0:01:52.6]} 20. Be4 {[%clk 0:02:03.6]} 20... Qc7 {[%clk
0:01:50.1]} 21. Rac1 {[%clk 0:02:01.9]} 21... Rd7 {[%clk 0:01:46.6]} 22. Qf3
{[%clk 0:01:55.2]} 22... Rad8 {[%clk 0:01:39.6]} 23. g3 {[%clk 0:01:43.1]} 23...
Qb6 {[%clk 0:01:25.9]} 24. Kg2 {[%clk 0:01:38.7]} 24... Bg5 {[%clk 0:01:25.6]}
25. Rcd1 {[%clk 0:01:38.1]} 25... Bd2 {[%clk 0:01:15.6]} 26. Bxd2 {[%clk
0:01:22.9]} 26... Rxd2 {[%clk 0:01:16.5]} 27. Rxd2 {[%clk 0:01:22.9]} 27... Rxd2
{[%clk 0:01:17.2]} 28. b4 {[%clk 0:01:22.4]} 28... a5 {[%clk 0:01:03.8]} 29. Rb1
{[%clk 0:01:11.1]} 29... axb4 {[%clk 0:00:34.7]} 30. Rxb4 {[%clk 0:01:09.8]}
30... Qc5 {[%clk 0:00:35.2]} 31. Rxb7 {[%clk 0:01:07.6]} 31... Rd7 {[%clk
0:00:35.6]} 32. Rb8 {[%clk 0:01:01.3]} 32... Qxe5 {[%clk 0:00:33.9]} 33. Ra8
{[%clk 0:00:54.2]} 33... Qd6 {[%clk 0:00:29.6]} 34. a4 {[%clk 0:00:46.4]} 34...
Rd8 {[%clk 0:00:28.8]} 35. Bc2 {[%clk 0:00:35.4]} 35... e5 {[%clk 0:00:14.7]}
36. a5 {[%clk 0:00:32.3]} 36... Ne6 {[%clk 0:00:14.5]} 37. Rxd8+ {[%clk
0:00:28.9]} 37... Qxd8 {[%clk 0:00:14]} 38. a6 {[%clk 0:00:27.9]} 38... Nd4
{[%clk 0:00:13.8]} 39. Qe4 {[%clk 0:00:25.8]} 39... f5 {[%clk 0:00:13.6]} 40.
Qb7 {[%clk 0:00:23.8]} 40... Ne6 {[%clk 0:00:06.6]} 41. Bb3 {[%clk 0:00:21]} 1-0

[Event "*** Titled Tuesday Blitz"]
[Site "Chess.com"]
[Date "2021.04.06"]
[Round "2"]
[White "lrestevez"]
[Black "goofypenguin96"]
[Result "1-0"]
[WhiteElo "2137"]
[BlackElo "2383"]
[TimeControl "180+1"]
[EndTime "10:18:33 PDT"]
[Termination "lrestevez won by checkmate"]

1. e4 {[%clk 0:02:57.9]} 1... c5 {[%clk 0:02:59.8]} 2. Nf3 {[%clk 0:02:55.2]}
2... d6 {[%clk 0:03:00.2]} 3. d4 {[%clk 0:02:55.3]} 3... cxd4 {[%clk 0:03:01.1]}
4. c3 {[%clk 0:02:56.1]} 4... dxc3 {[%clk 0:03:00.4]} 5. Nxc3 {[%clk 0:02:57]}
5... Nc6 {[%clk 0:03:01]} 6. Bc4 {[%clk 0:02:57.2]} 6... Nf6 {[%clk 0:03:01.4]}
7. Bg5 {[%clk 0:02:54.1]} 7... e5 {[%clk 0:02:58.3]} 8. O-O {[%clk 0:02:48.7]}
8... Be7 {[%clk 0:02:58.4]} 9. h3 {[%clk 0:02:46.5]} 9... O-O {[%clk 0:02:58.3]}
10. Qe2 {[%clk 0:02:44.7]} 10... a6 {[%clk 0:02:57]} 11. Rfd1 {[%clk 0:02:45]}
11... b5 {[%clk 0:02:55.8]} 12. Bb3 {[%clk 0:02:44.1]} 12... Bb7 {[%clk
0:02:55]} 13. Rd2 {[%clk 0:02:37.8]} 13... Qa5 {[%clk 0:02:51.7]} 14. Rad1
{[%clk 0:02:36.8]} 14... Rfd8 {[%clk 0:02:50.9]} 15. Bxf6 {[%clk 0:02:34.3]}
15... Bxf6 {[%clk 0:02:51.8]} 16. Rxd6 {[%clk 0:02:31.9]} 16... Rxd6 {[%clk
0:02:50]} 17. Rxd6 {[%clk 0:02:32.8]} 17... Qc7 {[%clk 0:02:38]} 18. Rd1 {[%clk
0:02:22.4]} 18... Nd4 {[%clk 0:02:34]} 19. Nxd4 {[%clk 0:02:15.8]} 19... exd4
{[%clk 0:02:34.9]} 20. Nd5 {[%clk 0:02:15]} 20... Bxd5 {[%clk 0:02:35]} 21. Bxd5
{[%clk 0:02:15.4]} 21... Rc8 {[%clk 0:02:34.3]} 22. Qh5 {[%clk 0:02:05.8]} 22...
g6 {[%clk 0:02:31.3]} 23. Qf3 {[%clk 0:02:04.5]} 23... Kg7 {[%clk 0:02:30.8]}
24. g3 {[%clk 0:02:00.5]} 24... Qc2 {[%clk 0:02:30.3]} 25. Re1 {[%clk
0:01:44.9]} 25... Qd2 {[%clk 0:02:20.2]} 26. Rd1 {[%clk 0:01:41.1]} 26... Qg5
{[%clk 0:02:10.7]} 27. h4 {[%clk 0:01:39.2]} 27... Qe5 {[%clk 0:02:10.2]} 28.
Qb3 {[%clk 0:01:35.9]} 28... Rc7 {[%clk 0:02:09]} 29. f4 {[%clk 0:01:34]} 29...
Qe7 {[%clk 0:02:05.7]} 30. e5 {[%clk 0:01:32.8]} 30... Bxh4 {[%clk 0:02:05.9]}
31. gxh4 {[%clk 0:01:29.9]} 31... Qxh4 {[%clk 0:02:06.8]} 32. Qd3 {[%clk
0:01:09.8]} 32... Qxf4 {[%clk 0:02:00.9]} 33. Qxd4 {[%clk 0:01:06.3]} 33...
Qxd4+ {[%clk 0:01:31.9]} 34. Rxd4 {[%clk 0:01:04.6]} 34... Rc1+ {[%clk
0:01:32.4]} 35. Kg2 {[%clk 0:00:58.3]} 35... Rc2+ {[%clk 0:01:33]} 36. Kf3
{[%clk 0:00:55.1]} 36... Rxb2 {[%clk 0:01:33.2]} 37. Bb3 {[%clk 0:00:53]} 37...
Kf8 {[%clk 0:01:23.4]} 38. Rd7 {[%clk 0:00:51.3]} 38... Ke8 {[%clk 0:01:23.5]}
39. Ra7 {[%clk 0:00:49.6]} 39... a5 {[%clk 0:01:14.9]} 40. Bxf7+ {[%clk
0:00:48.7]} 40... Kf8 {[%clk 0:01:14.1]} 41. Ke4 {[%clk 0:00:45.4]} 41... Rd2
{[%clk 0:01:07.7]} 42. Bd5 {[%clk 0:00:44.6]} 42... a4 {[%clk 0:01:05.2]} 43. e6
{[%clk 0:00:43.1]} 43... Re2+ {[%clk 0:01:01.6]} 44. Kd4 {[%clk 0:00:40.2]}
44... h5 {[%clk 0:01:00.9]} 45. Be4 {[%clk 0:00:37.7]} 45... h4 {[%clk
0:00:50.4]} 46. Ke5 {[%clk 0:00:36.7]} 46... h3 {[%clk 0:00:45.7]} 47. Kf6
{[%clk 0:00:36.8]} 47... Rf2+ {[%clk 0:00:44.3]} 48. Kxg6 {[%clk 0:00:37]} 48...
Rc2 {[%clk 0:00:29.1]} 49. e7+ {[%clk 0:00:32.8]} 49... Ke8 {[%clk 0:00:29]} 50.
Kf6 {[%clk 0:00:32.9]} 50... Rf2+ {[%clk 0:00:22.5]} 51. Ke6 {[%clk 0:00:31.1]}
51... Re2 {[%clk 0:00:22.6]} 52. Ra8# {[%clk 0:00:30.8]} 1-0

[Event "*** Titled Tuesday Blitz"]
[Site "Chess.com"]
[Date "2021.04.06"]
[Round "2"]
[White "Make_it_shine060"]
[Black "scarabee43"]
[Result "0-1"]
[WhiteElo "2209"]
[BlackElo "2604"]
[TimeControl "180+1"]
[EndTime "10:18:34 PDT"]
[Termination "scarabee43 won on time"]

1. d4 {[%clk 0:03:00.9]} 1... Nf6 {[%clk 0:02:59.6]} 2. c4 {[%clk 0:03:00.1]}
2... e6 {[%clk 0:02:59.6]} 3. Nf3 {[%clk 0:02:58.1]} 3... d5 {[%clk 0:02:59.5]}
4. Nc3 {[%clk 0:02:57.6]} 4... dxc4 {[%clk 0:02:55.7]} 5. a4 {[%clk 0:02:52.9]}
5... Bb4 {[%clk 0:02:42]} 6. Bg5 {[%clk 0:02:40.3]} 6... c5 {[%clk 0:02:21.6]}
7. dxc5 {[%clk 0:02:24.9]} 7... Qxd1+ {[%clk 0:02:17.2]} 8. Rxd1 {[%clk
0:02:23]} 8... Na6 {[%clk 0:02:03.3]} 9. e3 {[%clk 0:02:08.6]} 9... Nxc5 {[%clk
0:01:53.8]} 10. Bxc4 {[%clk 0:02:06.1]} 10... h6 {[%clk 0:01:35.7]} 11. Bb5+
{[%clk 0:01:53.3]} 11... Ke7 {[%clk 0:01:31]} 12. Bf4 {[%clk 0:01:48.4]} 12...
Nce4 {[%clk 0:01:12.1]} 13. O-O {[%clk 0:01:05.3]} 13... Bxc3 {[%clk 0:01:04.7]}
14. bxc3 {[%clk 0:01:03.5]} 14... Bd7 {[%clk 0:01:02.9]} 15. c4 {[%clk
0:00:54.4]} 15... a6 {[%clk 0:00:58.5]} 16. Bxd7 {[%clk 0:00:53.4]} 16... Nxd7
{[%clk 0:00:58.7]} 17. Nd2 {[%clk 0:00:42.7]} 17... Nec5 {[%clk 0:00:50.8]} 18.
a5 {[%clk 0:00:33.7]} 18... e5 {[%clk 0:00:50.4]} 19. Bg3 {[%clk 0:00:31.7]}
19... Rac8 {[%clk 0:00:48]} 20. Nf3 {[%clk 0:00:29.1]} 20... Ke6 {[%clk
0:00:43.8]} 21. Rd5 {[%clk 0:00:26.3]} 21... f6 {[%clk 0:00:40.9]} 22. Rfd1
{[%clk 0:00:25.4]} 22... Rhd8 {[%clk 0:00:36.4]} 23. Rd6+ {[%clk 0:00:23.3]}
23... Kf7 {[%clk 0:00:32.7]} 24. Kf1 {[%clk 0:00:20.5]} 24... Rc7 {[%clk
0:00:25.3]} 25. Ke2 {[%clk 0:00:19.6]} 25... Ne4 {[%clk 0:00:24.6]} 26. Bxe5
{[%clk 0:00:14.4]} 26... Nxd6 {[%clk 0:00:22]} 27. Bxd6 {[%clk 0:00:12.9]} 27...
Rxc4 {[%clk 0:00:22.5]} 28. Nd4 {[%clk 0:00:12.2]} 28... Ne5 {[%clk 0:00:21.6]}
29. Ba3 {[%clk 0:00:08.3]} 29... Nc6 {[%clk 0:00:19.4]} 30. Nxc6 {[%clk
0:00:05.9]} 30... Rxd1 {[%clk 0:00:19.4]} 31. Kxd1 {[%clk 0:00:04.5]} 31... Rxc6
{[%clk 0:00:20]} 32. Kd2 {[%clk 0:00:04.2]} 32... Rc4 {[%clk 0:00:20.6]} 33. Kd3
{[%clk 0:00:03.5]} 33... Ra4 {[%clk 0:00:21.1]} 34. Bc5 {[%clk 0:00:02.9]} 34...
Rxa5 {[%clk 0:00:21.7]} 35. Bd4 {[%clk 0:00:02.7]} 35... Ra2 {[%clk 0:00:22.1]}
36. e4 {[%clk 0:00:00.6]} 36... Ke6 {[%clk 0:00:22.3]} 0-1